bitfinex-derivatives/quotes_ETHF0:USTF0_20250123
["timestamp","ask_amount","ask_price","bid_price","bid_amount"]
[1737652331187,0.61703,3240.5,3240.4,3.2078]
[1737652331594,1.54244,3240.8,3240.0,2.13692]
[1737652331595,0.61711,3240.1,3240.0,4.7276]
[1737652331795,1.54239,3240.9,3240.0,4.7276]
[1737652331994,0.61708,3240.3,3240.0,4.7276]
[1737652332295,0.61711,3240.1,3240.0,4.7276]
[1737652332499,0.61708,3240.3,3240.0,4.7276]
[1737652332691,5.64367457,3241.0,3240.0,4.7276]
[1737652332893,0.61711,3240.1,3240.0,4.7276]
[1737652333092,0.61711,3240.1,3240.0,3.2078]
[1737652333592,0.61708,3240.3,3240.0,3.2078]
[1737652333994,4.08948317,3240.8,3240.0,3.2078]
[1737652334202,0.61711,3240.1,3240.0,3.2078]
[1737652339802,0.61718,3239.7,3239.6,3.2078]
[1737652340004,0.72416083,3240.1,3239.2,1.5269]
[1737652340209,0.61732,3239.0,3238.8,3.2078]
[1737652342900,0.61732,3239.0,3238.7,3.2078]
[1737652344298,1.54296,3239.7,3238.7,3.2078]
[1737652344499,0.61726,3239.3,3239.2,3.2078]
[1737652344899,0.61721,3239.6,3239.2,3.82506]
[1737652345105,0.61726,3239.3,3239.2,3.2078]
[1737652345307,3.12529,3240.1,3239.2,3.2078]
[1737652345609,0.61724,3239.4,3239.2,3.2078]
[1737652345803,1.5825,3240.1,3239.2,3.2078]
[1737652346001,0.61716,3239.8,3239.7,3.2078]
[1737652347699,1.54273,3240.2,3239.5,1.5216]
[1737652347902,0.6172,3239.6,3239.5,1.5216]
[1737652348509,3.2078,3240.6,3239.5,1.5216]
[1737652348704,1.54263,3240.4,3239.7,3.2078]
[1737652348909,0.61716,3239.8,3239.7,3.2078]
[1737652351806,1.54287,3239.9,3239.3,3.2078]
[1737652352110,0.61724,3239.4,3239.3,3.2078]
[1737652353702,2.93188164,3240.6,3239.2,3.2078]
[1737652354009,0.61722,3239.5,3239.4,6.13968164]
[1737652354403,0.61722,3239.5,3239.4,3.2078]
[1737652354811,0.61722,3239.5,3239.4,6.13968164]
[1737652355609,0.61721,3239.6,3239.4,6.13968164]
[1737652355810,0.61719,3239.7,3239.5,0.61722]
[1737652356008,0.61719,3239.7,3239.6,1.5754]
[1737652356306,0.61711,3240.1,3239.8,0.61715]
[1737652356513,0.61711,3240.1,3240.0,3.2078]
[1737652357012,0.61718,3239.7,3239.6,1.5754]
[1737652357208,0.6172,3239.6,3239.5,4.852]
[1737652357416,0.6172,3239.6,3239.5,3.2078]
[1737652358309,0.28939338,3240.0,3239.5,6.13968164]
[1737652358513,1.54277,3240.1,3239.5,6.13968164]
[1737652358716,0.61712,3240.0,3239.9,3.2078]
[1737652359209,0.61712,3240.1,3239.9,6.13968164]
[1737652359417,0.6171,3240.2,3239.9,6.75681164]
[1737652359610,0.61711,3240.1,3240.0,3.0919]
[1737652361317,0.61711,3240.1,3240.0,1.5425]
[1737652361813,0.28939338,3240.4,3240.1,0.6171]
[1737652362120,0.28938932,3240.7,3240.0,1.5425]
[1737652362121,0.28939338,3240.8,3240.3,5.62177561]
[1737652362419,0.90636338,3240.8,3240.7,5.62177561]
[1737652362622,0.61697,3240.8,3240.7,5.62177561]
[1737652363009,0.61697,3240.8,3240.7,3.2078]
[1737652367914,0.61696,3240.9,3240.7,3.2078]
[1737652368114,0.28936617,3241.2,3240.7,3.82479]
[1737652368316,0.61688,3241.3,3241.1,3.2078]
[1737652368618,0.6169,3241.2,3241.1,3.2078]
[1737652369214,1.54209,3241.6,3241.1,3.2078]
[1737652369412,0.61682,3241.7,3241.5,3.2078]
[1737652369721,0.61674,3242.1,3241.9,2.92551005]
[1737652369921,1.54153,3242.7,3242.0,6.3233]
[1737652370114,0.61665,3242.5,3242.4,3.2078]
[1737652370712,4.66616574,3242.5,3242.4,3.2078]
[1737652371119,4.66616574,3242.5,3241.7,0.00462942]
[1737652371120,0.61673,3242.1,3242.0,3.2078]
[1737652374019,0.61678,3241.8,3241.7,0.00462942]
[1737652382229,0.61678,3241.8,3241.7,0.62142942]
[1737652382423,0.61678,3241.8,3241.7,0.00462942]
[1737652384028,3.84858,3241.8,3241.7,9.42e-06]
[1737652384232,9.86209145,3241.8,3241.7,9.42e-06]
[1737652384420,17.15678584,3241.8,3241.7,9.42e-06]
[1737652385016,0.61697,3240.8,3240.7,4.7945]
[1737652386017,3.2078,3241.0,3240.3,3.2078]
[1737652386333,0.61703,3240.5,3240.4,9.42e-06]
[1737652386524,8.75487588,3240.5,3240.4,9.42e-06]
[1737652386727,12.9982229,3240.5,3240.4,9.42e-06]
[1737652388125,12.9982229,3240.5,3239.3,3.2078]
[1737652388126,0.61724,3239.4,3239.3,3.2078]
[1737652388330,0.61732,3239.0,3238.9,3.2078]
[1737652388929,0.61737,3238.7,3238.6,3.2927]
[1737652389137,7.26321964,3239.0,3238.0,5.62117876]
[1737652389436,0.61743,3238.4,3238.3,0.00462942]
[1737652390136,3.82523,3238.4,3238.3,0.00462942]
[1737652392031,3.8585778,3238.4,3238.3,0.00462942]
[1737652392236,0.6507778,3238.4,3238.3,0.00462942]
[1737652395036,0.6507778,3238.4,3238.3,40.80462942]
[1737652395232,0.6507778,3238.4,3238.3,0.00462942]
[1737652396036,0.0333478,3238.4,3238.3,0.00462942]
[1737652396236,0.0333478,3238.4,3238.3,2.93509266]
[1737652396437,0.0333478,3238.4,3238.3,4.46509266]
[1737652396941,0.0333478,3238.4,3238.3,45.26509266]
[1737652397134,0.62195942,3239.0,3238.5,0.6174]
[1737652397441,0.00462942,3239.0,3238.8,3.2078]
[1737652397630,0.00462942,3239.0,3238.9,1.5298]
[1737652397831,0.62194942,3239.0,3238.9,1.5298]
[1737652398341,0.00462942,3239.0,3238.9,1.5298]
[1737652398732,4.7507,3239.9,3238.9,1.5298]
[1737652398934,0.61729,3239.2,3238.9,1.5298]
[1737652399134,0.61724,3239.4,3239.1,3.54775324]
[1737652399334,0.61724,3239.4,3239.3,3.2078]
[1737652401833,0.61723,3239.5,3239.3,3.2078]
[1737652402039,0.0046051,3239.7,3239.4,1.6458]
[1737652402245,0.61711,3240.1,3239.8,0.61715]
[1737652402448,0.61714,3240.0,3239.9,4.7408]
[1737652403028,0.61711,3240.1,3239.9,4.7408]
[1737652403241,2.15935,3240.9,3240.1,0.6171]
[1737652403537,0.61705,3240.4,3240.3,3.2078]
[1737652404041,0.61702,3240.6,3240.3,3.82486]
[1737652404241,0.61701,3240.6,3240.3,6.75532324]
[1737652404841,1.54228,3241.2,3240.3,6.13826324]
[1737652405041,0.61695,3240.9,3240.6,0.617]
[1737652405238,0.61695,3240.9,3240.8,3.2078]
[1737652406343,0.61687,3241.4,3241.1,0.61691]
[1737652406535,0.61684,3241.5,3241.4,2.93046324]
[1737652407340,4.74959,3242.2,3241.2,3.2078]
[1737652407645,0.61686,3241.5,3241.2,3.2078]
[1737652407841,0.61686,3241.5,3241.3,2.93046324]
[1737652408150,0.6168,3241.8,3241.3,2.93046324]
[1737652408343,0.6168,3241.8,3241.7,3.2078]
[1737652410741,1.54163,3242.5,3241.7,3.2078]
[1737652411244,1.54163,3242.5,3241.7,4.8417]
[1737652411447,0.61674,3242.1,3241.8,2.20797]
[1737652411642,4.7492,3243.0,3241.9,0.61675]
[1737652411843,0.61673,3242.1,3241.8,1.58917819]
[1737652412145,0.61676,3241.9,3241.8,1.58917819]
[1737652413239,1.5417,3242.4,3241.8,1.58917819]
[1737652413644,0.61676,3241.9,3241.8,1.58917819]
[1737652415943,0.61675,3242.0,3241.8,1.58917819]
[1737652416348,1.5417,3242.4,3241.8,1.58917819]
[1737652416544,0.61676,3241.9,3241.8,1.58917819]
[1737652416945,0.61658,3242.9,3242.2,0.6167]
[1737652417242,0.61663,3242.6,3242.5,3.2078]
[1737652417750,0.61663,3242.6,3242.5,5.61897439]
[1737652417932,0.61663,3242.6,3242.5,3.2078]
[1737652418247,0.61661,3242.8,3242.6,0.61662]
[1737652418546,0.61659,3242.9,3242.7,2.41117439]
[1737652418944,1.54125,3243.3,3242.5,3.2078]
[1737652419141,0.6166,3242.8,3242.6,0.61663]
[1737652419445,0.6166,3242.8,3242.7,2.41117439]
[1737652419642,0.6166,3242.8,3242.6,0.61663]
[1737652421351,1.54116,3243.5,3242.5,6.12938296]
[1737652421540,1.54116,3243.5,3242.9,3.2078]
[1737652421541,0.61655,3243.0,3242.9,3.2078]
[1737652423243,1.54116,3243.5,3242.9,6.12938296]
[1737652423442,0.61643,3243.7,3243.5,0.61646]
[1737652423649,3.2078,3244.5,3243.6,2.92158296]
[1737652424150,0.61641,3243.8,3243.6,3.53802296]
[1737652424449,0.61638,3244.0,3243.6,2.92158296]
[1737652424750,1.54066,3244.6,3243.8,3.2078]
[1737652424948,0.61636,3244.1,3243.8,3.82419]
[1737652425150,1.5841,3244.8,3243.8,3.2078]
[1737652425343,0.61638,3243.9,3243.8,3.2078]
[1737652425951,1.5407,3244.5,3243.8,3.2078]
[1737652425952,0.61638,3244.0,3243.8,3.2078]
[1737652426152,0.61637,3244.0,3243.8,3.2078]
[1737652426455,0.61638,3243.9,3243.8,3.2078]
[1737652427248,1.54078,3244.3,3243.5,1.6114]
[1737652427452,0.61644,3243.6,3243.5,1.6114]
[1737652427848,3.2078,3244.6,3243.5,1.6114]
[1737652428042,0.61646,3243.5,3243.4,3.2078]
[1737652428243,4.06988706,3243.9,3243.0,3.2078]
[1737652428548,1.54119,3243.5,3242.6,3.2078]
[1737652428759,0.6166,3242.8,3242.6,3.2078]
[1737652428946,0.61661,3242.7,3242.6,3.2078]
[1737652429455,5.49205131,3243.3,3242.6,3.2078]
[1737652429650,0.6166,3242.8,3242.6,3.2078]
[1737652429858,0.61661,3242.7,3242.6,3.2078]
[1737652430150,0.6166,3242.8,3242.6,3.2078]
[1737652430541,1.54118,3243.5,3242.6,3.2078]
[1737652430750,1.54125,3243.4,3242.6,3.2078]
[1737652430952,1.54129,3243.3,3242.6,3.2078]
[1737652431151,0.61661,3242.7,3242.6,3.2078]
[1737652431547,0.61659,3242.9,3242.6,3.82442]
[1737652431855,0.6166,3242.8,3242.6,3.2078]
[1737652432251,3.2078,3243.4,3242.6,3.2078]
[1737652432457,1.5413,3243.2,3242.6,3.2078]
[1737652432754,0.61661,3242.7,3242.6,3.2078]
[1737652435256,0.61661,3242.7,3242.6,3.82443]
[1737652435459,0.61661,3242.7,3242.6,3.2078]
[1737652436758,0.61659,3242.9,3242.6,3.2078]
[1737652436957,0.28914351,3243.3,3242.6,4.8189]
[1737652437259,0.28914351,3243.3,3243.0,3.82434]
[1737652437260,0.61651,3243.3,3243.0,3.82434]
[1737652437456,0.2891105,3243.7,3243.0,44.0078]
[1737652437763,0.61651,3243.3,3243.1,0.61653]
[1737652438154,0.61651,3243.3,3243.1,41.41653]
[1737652438862,0.61652,3243.2,3243.1,41.41653]
[1737652439057,1.6288,3243.9,3243.0,4.7845]
[1737652439262,1.6288,3243.9,3243.3,3.53807296]
[1737652439263,0.61647,3243.5,3243.3,3.53807296]
[1737652439461,0.61647,3243.5,3243.4,3.2078]
[1737652441169,0.6164,3243.8,3243.5,0.61646]
[1737652441368,1.33993288,3244.1,3243.8,0.61639]
[1737652441563,0.61636,3244.1,3243.9,2.4102968]
[1737652441870,0.72357288,3244.5,3243.8,3.2078]
[1737652442056,0.61638,3243.9,3243.8,3.2078]
[1737652442769,0.61646,3243.5,3243.4,3.2078]
[1737652443074,1.54092,3244.0,3243.0,4.7845]
[1737652443075,1.54096,3243.9,3243.0,4.7845]
[1737652443265,0.61653,3243.1,3243.0,4.7845]
[1737652443466,1.5412,3243.5,3242.7,2.4102968]
[1737652443764,1.5412,3243.5,3242.6,4.8453]
[1737652443765,0.28911111,3243.6,3243.0,6.2346368]
[1737652443970,0.61653,3243.1,3243.0,5.6180968]
[1737652444970,0.61653,3243.1,3243.0,3.2078]
[1737652445764,0.61653,3243.2,3243.0,3.2078]
[1737652445964,0.61653,3243.1,3243.0,3.2078]
[1737652448178,0.61653,3243.1,3243.0,5.6180968]
[1737652448363,0.72354862,3243.6,3243.0,5.6180968]
[1737652448570,0.61653,3243.1,3243.0,5.6180968]
[1737652448973,0.72354862,3243.6,3243.0,5.6180968]
[1737652449370,0.61653,3243.2,3243.0,6.2346468]
[1737652449579,0.72354862,3243.6,3243.1,0.61653]
[1737652449580,0.6165,3243.3,3243.1,0.61653]
[1737652449781,3.2078,3243.7,3243.5,0.61646]
[1737652449782,0.61643,3243.7,3243.5,0.61646]
[1737652449979,0.61634,3244.1,3243.6,3.2078]
[1737652450284,0.61642,3243.7,3243.6,3.2078]
[1737652450486,0.72395594,3244.2,3243.6,3.2078]
[1737652450682,0.61641,3243.8,3243.6,3.2078]
[1737652450879,0.61639,3243.9,3243.6,3.82422]
[1737652451087,0.61641,3243.8,3243.6,3.2078]
[1737652451288,0.61642,3243.7,3243.6,3.2078]
[1737652452181,1.54082,3244.2,3243.6,3.2078]
[1737652452372,0.61642,3243.7,3243.6,3.2078]
[1737652452773,0.61642,3243.8,3243.6,3.2078]
[1737652452983,0.61639,3243.9,3243.6,3.2078]
[1737652453187,0.61639,3243.9,3243.6,3.82423]
[1737652453383,0.72390269,3244.4,3243.6,3.2078]
[1737652453584,0.61642,3243.8,3243.6,3.2078]
[1737652454080,0.61642,3243.7,3243.6,3.2078]
[1737652454780,0.61647,3243.5,3243.2,4.6932068]
[1737652455087,0.61646,3243.5,3243.2,4.6931968]
[1737652455287,0.61648,3243.4,3243.2,4.0766968]
[1737652455784,0.61647,3243.5,3243.2,4.6932068]
[1737652455989,0.61645,3243.6,3243.3,0.61649]
[1737652456289,0.61645,3243.6,3243.5,3.2078]
[1737652457885,1.54078,3244.3,3243.5,3.2078]
[1737652458187,0.61642,3243.8,3243.5,3.82425]
[1737652458485,0.2890689,3244.3,3243.5,5.6180968]
[1737652458788,0.61636,3244.0,3243.9,3.2078]
[1737652460186,0.61633,3244.2,3243.9,3.2078]
[1737652460487,2.27793078,3244.5,3243.9,3.2078]
[1737652460987,0.61633,3244.2,3244.0,0.61636]
[1737652461181,0.72403078,3244.4,3244.1,2.4102968]
[1737652461485,0.61629,3244.4,3244.3,3.2078]
[1737652461983,0.72403078,3244.8,3244.3,3.2078]
[1737652462191,0.61621,3244.8,3244.7,3.2078]
[1737652462984,0.61621,3244.9,3244.7,3.2078]
[1737652463189,0.61621,3244.9,3244.8,1.6173]
[1737652463892,0.61621,3244.8,3244.7,3.2078]
[1737652466194,3.49678994,3244.9,3244.3,1.6173]
[1737652466497,0.61629,3244.4,3244.3,1.6173]
[1737652468684,0.61629,3244.5,3244.3,1.6173]
[1737652468987,0.61629,3244.4,3244.3,1.6173]
[1737652470587,3.2078,3244.5,3243.9,0.00462942]
[1737652470890,0.61636,3244.0,3243.9,0.00462942]
[1737652472192,0.90546806,3244.0,3243.9,9.42e-06]
[1737652472388,12.73973045,3244.0,3243.9,9.42e-06]
[1737652473202,13.02886809,3244.0,3243.9,9.42e-06]
[1737652474089,8.02876561,3244.0,3243.9,9.42e-06]
[1737652474491,7.59424077,3244.0,3243.9,9.42e-06]
[1737652474691,5.18394397,3244.0,3243.9,9.42e-06]
[1737652474895,4.89483591,3244.0,3243.9,9.42e-06]
[1737652475388,0.90549764,3244.0,3243.9,9.42e-06]
[1737652476190,3.31579444,3244.0,3243.9,9.42e-06]
[1737652476387,12.35930312,3244.0,3243.9,9.42e-06]
[1737652476584,12.64842685,3244.0,3243.9,9.42e-06]
[1737652477088,13.082807,3244.0,3243.9,9.42e-06]
[1737652477393,12.64842685,3244.0,3243.9,9.42e-06]
[1737652477591,14.27422685,3244.0,3243.9,9.42e-06]
[1737652478290,9.27422685,3244.0,3243.9,9.42e-06]
[1737652479190,14.70872287,3244.0,3243.9,9.42e-06]
[1737652479886,9.70872287,3244.0,3243.9,9.42e-06]
[1737652480697,6.86393005,3244.0,3243.9,9.42e-06]
[1737652480892,0.90549764,3244.0,3243.9,9.42e-06]
[1737652482488,0.61636,3244.0,3243.9,9.42e-06]
[1737652483897,0.9054695,3244.0,3243.9,9.42e-06]
[1737652484293,0.61636,3244.0,3243.9,9.42e-06]
[1737652488304,4.55465912,3244.0,3243.9,9.42e-06]
[1737652488700,12.25407046,3244.0,3243.9,9.42e-06]
[1737652489008,12.54320895,3244.0,3243.9,9.42e-06]
[1737652489304,7.97770403,3244.0,3243.9,9.42e-06]
[1737652489899,12.97770403,3244.0,3243.9,9.42e-06]
[1737652490106,7.97770403,3244.0,3243.9,9.42e-06]
[1737652490295,12.97770403,3244.0,3243.9,9.42e-06]
[1737652490701,0.61654,3243.1,3243.0,1.5883]
[1737652491007,0.61667,3242.4,3242.3,3.9234968]
[1737652491307,0.61667,3242.4,3242.3,2.12989]
[1737652491707,0.61667,3242.4,3242.3,1.5132]
[1737652492099,0.61673,3242.1,3242.0,0.00462942]
[1737652497105,0.61663,3242.6,3242.2,0.61669]
[1737652497414,3.21242942,3242.7,3242.0,2.41492622]
[1737652497415,3.21242942,3242.7,3242.4,3.0269568]
[1737652497604,0.62124942,3242.7,3242.5,1.5631]
[1737652497909,0.00462942,3242.7,3242.6,40.8]
[1737652498111,0.6166,3242.8,3242.6,41.41663]
[1737652498309,0.6166,3242.8,3242.7,2.4102968]
[1737652499015,1.54132,3243.2,3242.5,1.5631]
[1737652499016,0.61663,3242.6,3242.5,1.5631]
[1737652499916,3.2078,3243.1,3242.5,1.5631]
[1737652500216,0.61662,3242.7,3242.5,2.17975]
[1737652500610,0.61663,3242.6,3242.5,1.5631]
[1737652503309,0.61673,3242.1,3242.0,0.00462942]
[1737652503712,4.57582798,3242.1,3242.0,9.42e-06]
[1737652504106,4.86511409,3242.1,3242.0,9.42e-06]
[1737652504518,4.57582798,3242.1,3242.0,9.42e-06]
[1737652505418,9.57582798,3242.1,3242.0,9.42e-06]
[1737652505624,0.61692,3241.1,3241.0,1.6235]
[1737652505806,3.2078,3241.1,3240.4,3.2078]
[1737652506010,0.61701,3240.6,3240.5,1.6235]
[1737652506519,0.61701,3240.6,3240.5,3.2302]
[1737652506713,3.2078,3241.1,3240.5,3.2302]
[1737652506914,3.2078,3241.9,3240.9,3.82474]
[1737652507113,0.61693,3241.0,3240.9,3.2078]
[1737652507315,0.61693,3241.0,3240.7,3.53903408]
[1737652507718,3.2078,3241.5,3240.7,2.92204408]
[1737652507922,3.2078,3241.5,3240.5,44.0302]
[1737652508114,0.61701,3240.6,3240.5,44.0302]
[1737652509314,0.61701,3240.6,3240.5,3.2302]
[1737652512615,3.2078,3241.1,3240.5,3.2302]
[1737652512817,3.2078,3241.1,3240.7,2.92204408]
[1737652513017,3.2078,3241.7,3240.8,3.2078]
[1737652513228,3.2078,3241.7,3241.1,2.92204408]
[1737652513423,3.93886811,3242.1,3241.5,6.12984408]
[1737652513622,0.61676,3241.9,3241.8,2.92204408]
[1737652513823,3.2078,3242.2,3241.6,3.2584]
[1737652513824,0.6168,3241.7,3241.6,3.2584]
[1737652514124,3.2078,3242.2,3241.6,3.2584]
[1737652514326,0.61673,3242.1,3241.8,2.92204408]
[1737652514516,3.2078,3242.2,3241.8,2.92204408]
[1737652514717,0.00462,3242.4,3241.8,2.92204408]
[1737652514919,0.00462,3242.4,3241.9,3.2078]
[1737652515119,0.62129,3242.4,3242.1,0.61671]
[1737652515423,0.62129,3242.4,3242.3,3.2078]
[1737652515623,0.00462,3242.4,3242.3,3.2078]
[1737652515821,0.61657,3243.0,3242.6,0.61662]
[1737652516119,0.61657,3243.0,3242.3,8.2078]
[1737652516120,0.61659,3242.8,3242.7,1.6562]
[1737652516325,0.61667,3242.4,3242.3,3.2078]
[1737652518215,0.61674,3242.0,3241.9,0.00462942]
[1737652520019,15.81878769,3242.0,3241.9,9.42e-06]
[1737652520222,0.61697,3240.8,3240.7,4.7375]
[1737652520818,0.61697,3240.8,3240.7,3.2078]
[1737652524915,0.00462942,3241.1,3240.7,3.2078]
[1737652525120,0.61697,3240.9,3240.7,3.2078]
[1737652526225,0.61697,3240.8,3240.7,3.2078]
[1737652526720,0.00462942,3241.1,3240.7,3.2078]
[1737652527224,0.00462942,3241.1,3241.0,2.92204408]
[1737652527621,0.00462942,3241.1,3241.0,4.55464408]
[1737652527824,0.61697,3240.8,3240.7,3.2078]
[1737652528237,0.00462942,3241.1,3240.4,0.00462942]
[1737652528429,0.61703,3240.5,3240.4,0.00462942]
[1737652529428,0.00462942,3241.1,3240.4,0.00462942]
[1737652529628,0.62155942,3241.1,3240.8,0.61697]
[1737652529924,0.61697,3240.8,3240.7,3.2078]
[1737652531832,0.61696,3240.9,3240.7,3.2078]
[1737652532037,0.61697,3240.8,3240.7,3.2078]
[1737652536331,0.00462942,3241.1,3240.4,0.00462942]
[1737652536332,1.5225,3241.0,3240.4,0.00462942]
[1737652536531,0.61703,3240.5,3240.4,9.42e-06]
[1737652536739,3.53907408,3240.5,3240.4,9.42e-06]
[1737652536933,7.56425401,3240.5,3240.4,9.42e-06]
[1737652537125,4.64220993,3240.5,3240.4,9.42e-06]
[1737652537332,6.23960993,3240.5,3240.4,9.42e-06]
[1737652538136,2.21443,3240.5,3240.4,9.42e-06]
[1737652538332,0.61703,3240.5,3240.4,9.42e-06]
[1737652539337,0.61699,3240.8,3240.6,0.61701]
[1737652539539,0.61697,3240.9,3240.5,3.2078]
[1737652539732,0.00462942,3241.1,3240.5,4.8789]
[1737652540439,0.61701,3240.6,3240.5,1.6711]
[1737652542227,0.00462942,3241.1,3240.5,1.6711]
[1737652542431,0.00462942,3241.1,3241.0,0.61694]
[1737652542744,0.00462942,3241.1,3240.9,0.61694]
[1737652542944,0.61697,3240.9,3240.7,3.53903408]
[1737652543243,1.54235,3241.0,3240.5,4.8789]
[1737652543437,0.61701,3240.6,3240.5,4.8789]
[1737652543634,0.61701,3240.6,3240.5,5.49593]
[1737652543830,0.00462942,3241.1,3240.5,4.8789]
[1737652544237,0.61697,3240.9,3240.7,0.61698]
[1737652544540,0.61699,3240.8,3240.6,0.61701]
[1737652544937,0.61698,3240.8,3240.7,0.61698]
[1737652545134,0.61697,3240.9,3240.7,0.61698]
[1737652545537,0.61698,3240.8,3240.6,0.617]
[1737652546035,0.617,3240.7,3240.6,0.617]
[1737652546236,0.00462942,3241.1,3240.6,0.617]
[1737652546442,0.62155942,3241.1,3240.9,0.61695]
[1737652546642,0.62155942,3241.1,3240.7,2.92204408]
[1737652547330,0.62155942,3241.1,3240.9,0.61694]
[1737652547537,0.00462942,3241.1,3240.9,3.2078]
[1737652547731,0.00462942,3241.1,3241.0,0.61694]
[1737652548438,0.00462942,3241.1,3240.9,3.2078]
[1737652548748,0.61693,3241.0,3240.9,3.2078]
[1737652549041,0.00462942,3241.1,3240.5,4.8789]
[1737652549241,0.00462942,3241.1,3240.6,0.617]
[1737652549444,0.61698,3240.8,3240.6,0.617]
[1737652549644,0.61693,3241.0,3240.6,0.617]
[1737652549843,0.61697,3240.9,3240.5,4.8789]
[1737652550047,0.00462942,3241.1,3240.7,2.92204408]
[1737652550244,0.28931217,3241.4,3241.0,3.2078]
[1737652550446,3.2078,3241.8,3241.1,4.51314408]
[1737652550756,3.2078,3242.2,3241.8,0.61677]
[1737652550943,3.2078,3242.2,3241.5,6.12984408]
[1737652550944,3.2078,3242.2,3241.9,1.5911]
[1737652551144,0.61674,3242.0,3241.9,1.5911]
[1737652551743,3.2078,3242.2,3241.9,1.5911]
[1737652551949,0.00462942,3242.4,3242.3,0.61669]
[1737652552137,0.00462942,3242.4,3242.3,6.74653408]
[1737652553536,0.00462942,3242.4,3242.3,3.82449]
[1737652555953,0.62129942,3242.4,3242.3,3.2078]
[1737652556140,0.00462942,3242.4,3242.0,1.55232942]
[1737652556347,0.61673,3242.1,3242.0,0.00462942]
[1737652558259,0.6169,3241.2,3241.1,3.2078]
[1737652558553,3.2078,3241.7,3241.1,6.12984408]
[1737652558848,0.61682,3241.7,3241.4,0.61684]
[1737652559056,0.61681,3241.7,3241.5,0.61683]
[1737652559350,4.75411942,3242.4,3241.3,0.00462942]
[1737652559648,0.61686,3241.4,3241.3,0.00462942]
[1737652560857,3.2078,3242.0,3241.3,0.00462942]
[1737652561054,0.61677,3241.9,3241.6,3.2078]
[1737652561258,4.75411942,3242.4,3241.6,3.2078]
[1737652561259,0.6167,3242.3,3242.0,0.61674]
[1737652561449,0.62130942,3242.4,3242.0,46.92984408]
[1737652561645,0.00462942,3242.4,3242.0,46.92984408]
[1737652561955,0.61671,3242.2,3242.0,46.92984408]
[1737652562157,0.61671,3242.2,3242.0,6.12984408]
[1737652562359,0.00462942,3242.4,3242.0,6.12984408]
[1737652562657,0.61673,3242.1,3242.0,3.2078]
[1737652563653,0.00462942,3242.4,3241.6,6.37052181]
[1737652563957,0.00462942,3242.4,3241.6,6.12984408]
[1737652564159,4.08268725,3242.3,3241.6,3.2078]
[1737652564356,0.6168,3241.7,3241.6,3.2078]
[1737652564550,4.08268725,3242.3,3241.8,0.61677]
[1737652564862,0.61669,3242.3,3242.0,3.82454]
[1737652565158,0.00462942,3242.4,3242.0,3.82454]
[1737652565159,0.61673,3242.1,3242.0,3.2078]
[1737652565655,0.00462942,3242.4,3242.0,3.2078]
[1737652565859,0.61671,3242.2,3242.0,3.2078]
[1737652566055,0.61673,3242.1,3242.0,3.2078]
[1737652566856,0.00462942,3242.4,3242.0,3.2078]
[1737652567552,0.00462942,3242.4,3242.0,6.12984408]
[1737652567853,0.61669,3242.3,3242.0,6.12984408]
[1737652568052,0.61669,3242.3,3242.1,0.61672]
[1737652568354,0.00462942,3242.4,3242.0,6.12984408]
[1737652568756,0.00462942,3242.4,3242.3,0.61669]
[1737652569954,0.00462942,3242.4,3242.0,6.12984408]
[1737652570354,0.61673,3242.1,3242.0,3.2078]
[1737652571161,0.00462942,3242.4,3242.0,3.2078]
[1737652571357,0.61673,3242.1,3242.0,3.2078]
[1737652571555,0.61672,3242.2,3242.0,3.82454]
[1737652571855,0.00462942,3242.4,3242.0,6.12984408]
[1737652571856,0.61669,3242.3,3242.0,6.12984408]
[1737652572061,0.61672,3242.2,3242.0,6.74657408]
[1737652572255,0.00462942,3242.4,3242.0,6.12984408]
[1737652572658,0.61669,3242.3,3242.1,0.61671]
[1737652572858,0.62130942,3242.4,3242.2,0.61669]
[1737652573763,0.62129942,3242.4,3242.2,2.1949]
[1737652573963,0.00462942,3242.4,3242.2,1.5782]
[1737652574464,0.62130942,3242.4,3242.2,2.1949]
[1737652574864,0.00462942,3242.4,3242.3,0.61669]
[1737652575467,0.62129942,3242.4,3242.2,2.1949]
[1737652575666,0.00462942,3242.4,3242.3,0.61669]
[1737652576269,0.00462942,3242.4,3242.2,1.5782]
[1737652576565,0.00462942,3242.4,3242.3,0.6167]
[1737652577562,0.00462942,3242.4,3242.3,2.2769]
[1737652577763,0.61659,3243.0,3242.8,0.61661]
[1737652578165,3.2078,3243.1,3242.6,2.92204408]
[1737652578466,1.658,3244.0,3243.0,6.12984408]
[1737652578765,1.658,3244.0,3243.4,6.12984408]
[1737652578968,0.00462942,3243.8,3243.4,3.2078]
[1737652579169,0.61648,3243.5,3243.4,3.2078]
[1737652579565,0.61652,3243.5,3243.4,3.2078]
[1737652580467,0.61647,3243.7,3243.4,3.82431]
[1737652580671,0.00462942,3243.8,3243.4,6.12984408]
[1737652580876,0.00462942,3243.8,3243.7,0.61647]
[1737652581276,0.00462942,3243.8,3243.7,0.61642]
[1737652581678,0.00462942,3243.8,3243.4,3.2078]
[1737652581875,0.61646,3243.5,3243.4,3.2078]
[1737652582075,0.61645,3243.6,3243.4,6.74631408]
[1737652582274,0.61644,3243.7,3243.4,6.12984408]
[1737652582478,0.61644,3243.7,3243.4,6.74631408]
[1737652582479,0.61643,3243.7,3243.4,6.74631408]
[1737652582884,0.61645,3243.6,3243.4,6.74631408]
[1737652583182,0.00462942,3243.8,3243.4,6.12984408]
[1737652583376,0.62104942,3243.8,3243.5,0.61645]
[1737652583688,0.00462942,3243.8,3243.4,6.12984408]
[1737652583874,0.00462942,3243.8,3243.7,0.61643]
[1737652584579,0.00462942,3243.8,3243.6,0.61643]
[1737652584776,0.00462942,3243.8,3243.4,6.12984408]
[1737652584978,0.62104942,3243.8,3243.5,0.61646]
[1737652585985,0.00462942,3243.8,3243.7,0.61643]
[1737652586687,0.00462942,3243.8,3243.6,0.61643]
[1737652586983,0.61644,3243.6,3243.4,6.74632408]
[1737652587284,0.61644,3243.6,3243.4,6.12984408]
[1737652587485,0.00462942,3243.8,3243.4,6.12984408]
[1737652587684,0.61646,3243.5,3243.4,6.12984408]